bitfinex/quotes_ETHUSD_20240715
["timestamp","ask_amount","ask_price","bid_price","bid_amount"]
[1721034647522,2.68546,3351.4,3351.1,1.7]
[1721034647681,2.68528,3351.6,3351.1,1.7]
[1721034648078,2.68528,3351.6,3351.2,0.06324079]
[1721034649926,4.0785757,3351.8,3351.2,0.06324079]
[1721034649927,2.68537,3351.5,3351.2,0.06324079]
[1721034650290,2.68537,3351.5,3351.1,1.7]
[1721034650797,2.68537,3351.5,3351.2,0.0632351]
[1721034651330,2.68537,3351.5,3351.3,0.06318172]
[1721034651717,2.68537,3351.5,3351.1,1.7]
[1721034652083,2.68559,3351.3,3351.2,0.0632351]
[1721034652618,2.68559,3351.3,3350.4,1.7]
[1721034652619,2.68587,3350.9,3350.4,1.7]
[1721034652929,2.68587,3350.9,3350.5,0.06161252]
[1721034653137,2.68555,3351.3,3350.8,1.7]
[1721034653484,2.6856,3351.2,3350.8,1.7]
[1721034654136,2.68569,3351.1,3350.8,1.7]
[1721034654284,2.68578,3351.0,3350.4,1.7]
[1721034654481,2.68593,3350.8,3350.4,1.7]
[1721034654682,2.68593,3350.8,3350.5,0.06161252]
[1721034654933,5.37216,3350.6,3350.5,0.06161252]
[1721034655286,5.37216,3350.6,3349.7,1.7]
[1721034655287,2.68641,3350.2,3349.7,1.7]
[1721034655519,2.68641,3350.2,3349.5,1.7]
[1721034655520,2.68649,3350.1,3349.5,1.7]
[1721034655692,2.68649,3350.1,3349.8,0.06202734]
[1721034655900,2.68649,3350.1,3349.3,1.7]
[1721034656095,7.2977,3350.7,3349.3,1.7]
[1721034656096,2.68656,3350.0,3349.9,0.06197391]
[1721034656319,2.68667,3349.9,3349.3,1.7]
[1721034656689,2.68667,3349.9,3349.4,0.06227988]
[1721034657024,2.68696,3349.5,3349.4,0.06227988]
[1721034657398,2.68696,3349.5,3348.8,7.262]
[1721034657598,2.68705,3349.4,3348.9,0.97306]
[1721034657802,2.68705,3349.4,3348.9,1.76254711]
[1721034658118,2.68697,3349.5,3348.9,1.7]
[1721034658502,2.68705,3349.4,3349.0,0.06252048]
[1721034658997,2.68705,3349.4,3348.8,1.7]
[1721034659300,9.98422,3350.1,3348.8,1.7]
[1721034659301,2.68718,3349.3,3348.8,1.7]
[1721034659646,2.68718,3349.3,3348.9,0.06257394]
[1721034660008,2.68696,3349.5,3349.3,1.7]
[1721034661230,2.68706,3349.4,3348.7,1.7]
[1721034661441,2.68721,3349.2,3348.2,2.4686]
[1721034661752,2.68758,3348.8,3348.3,1.7]
[1721034662045,2.68758,3348.8,3348.3,1.76292438]
[1721034662340,2.68758,3348.8,3348.3,0.06292438]
[1721034662697,2.68761,3348.7,3348.1,1.7]
[1721034662892,2.68761,3348.7,3347.7,2.95]
[1721034662893,2.68771,3348.6,3348.4,0.0628709]
[1721034663128,2.68771,3348.6,3347.9,1.7]
[1721034663129,0.537532,3348.6,3347.9,1.7]
[1721034663350,5.31046,3348.9,3347.3,2.2809]
[1721034663495,2.6882,3348.0,3347.7,1.7]
[1721034665007,2.6882,3348.0,3347.3,1.7]
[1721034665345,2.68842,3347.7,3347.3,1.7]
[1721034666637,2.68842,3347.7,3346.8,7.27]
[1721034666638,2.68858,3347.5,3347.0,1.7]
[1721034666892,2.68826,3347.9,3347.0,1.7]
[1721034667051,2.68826,3347.9,3347.4,1.7]
[1721034667739,2.68841,3347.7,3347.4,1.7]
[1721034668699,2.68826,3347.9,3347.4,1.7]
[1721034668939,2.68864,3347.5,3346.6,1.7]
[1721034669141,2.68882,3347.2,3346.7,1.7]
[1721034669302,2.6887,3347.4,3346.7,1.76404093]
[1721034669951,2.68864,3347.5,3346.7,1.76404093]
[1721034669952,2.68875,3347.3,3346.7,1.76404093]
[1721034670744,2.68875,3347.3,3346.7,0.06404093]
[1721034671035,3.226559,3347.2,3346.7,0.06404093]
[1721034671199,3.226559,3347.2,3346.5,1.7]
[1721034671401,2.68889,3347.1,3346.8,0.06412731]
[1721034671602,2.68889,3347.1,3346.5,1.7]
[1721034671877,2.68889,3347.1,3346.9,0.0640752]
[1721034672016,2.68889,3347.1,3346.1,3.0]
[1721034672017,2.68889,3347.1,3346.5,1.7]
[1721034672204,2.68877,3347.3,3346.5,1.7]
[1721034672405,2.68881,3347.2,3346.6,0.06424001]
[1721034672943,2.68919,3346.8,3346.6,0.06424001]
[1721034674931,0.537748,3347.2,3346.5,1.7]
[1721034675100,7.2977,3347.3,3346.9,1.7]
[1721034675431,9.98644,3347.3,3346.9,1.7]
[1721034675633,9.98644,3347.3,3347.0,0.06405775]
[1721034675817,7.2977,3347.3,3346.9,1.7]
[1721034676221,7.2977,3347.3,3347.0,0.06405775]
[1721034677243,2.68867,3347.4,3347.0,0.06405775]
[1721034679021,2.68857,3347.5,3347.0,0.06405775]
[1721034680161,7.2977,3347.8,3347.3,1.7]
[1721034680531,7.2977,3347.8,3347.4,0.06384724]
[1721034681257,7.2977,3347.8,3347.7,1.7]
[1721034681466,12.19,3348.2,3347.7,1.7]
[1721034681467,2.68801,3348.2,3347.7,1.7]
[1721034681629,2.68793,3348.3,3347.7,1.76368038]
[1721034681828,7.2977,3348.5,3347.7,1.76368038]
[1721034682045,0.62842967,3348.5,3347.7,1.76368038]
[1721034682248,2.68785,3348.4,3347.7,1.76368038]
[1721034682456,2.68799,3348.3,3347.7,1.76368038]
[1721034682639,0.62842967,3348.5,3347.7,1.76368038]
[1721034682640,2.68805,3348.2,3347.7,1.76368038]
[1721034682842,2.68822,3348.0,3347.7,0.06368038]
[1721034683045,2.68833,3347.8,3347.7,0.06368038]
[1721034683361,2.68825,3347.9,3347.3,1.7]
[1721034683362,2.68845,3347.7,3347.3,1.7]
[1721034683537,3.23825,3347.9,3347.3,1.7]
[1721034683742,2.68835,3347.8,3347.4,0.06379987]
[1721034684058,2.68825,3347.9,3347.4,0.06379987]
[1721034684266,2.68844,3347.7,3347.3,1.7]
[1721034684432,3.0108377,3347.9,3347.5,0.06376828]
[1721034684637,2.68849,3347.6,3347.4,0.06382178]
[1721034684839,2.68849,3347.6,3347.0,1.7]
[1721034685051,2.68849,3347.6,3347.5,0.06377677]
[1721034685227,2.68838,3347.8,3347.0,1.7]
[1721034685561,2.68838,3347.8,3347.1,0.06399079]
[1721034685924,2.68826,3347.9,3347.4,1.7]
[1721034686352,2.68826,3347.9,3347.5,0.06377677]
[1721034687058,2.68834,3347.8,3347.5,0.06377677]
[1721034687260,2.68834,3347.8,3346.9,1.7]
[1721034687459,2.68819,3348.0,3347.3,1.7]
[1721034687633,2.68832,3347.9,3347.3,1.7]
[1721034687836,2.68832,3347.9,3347.4,0.06383168]
[1721034688238,2.68832,3347.9,3347.3,1.7]
[1721034688440,2.68842,3347.7,3347.3,1.7]
[1721034688628,2.68842,3347.7,3347.4,0.06383168]
[1721034688827,2.6883,3347.9,3347.4,0.06383168]
[1721034689031,13.12959,3348.4,3347.3,1.7]
[1721034689032,2.68803,3348.2,3347.3,1.7]
[1721034689226,2.68817,3348.0,3347.3,1.7]
[1721034689497,3.06662967,3348.5,3347.4,0.23383168]
[1721034689634,1.58352282,3348.4,3347.4,0.06383168]
[1721034689967,2.68815,3348.1,3347.3,1.7]
[1721034690153,2.68822,3348.0,3347.3,1.7]
[1721034690361,2.68822,3348.0,3347.4,0.06383168]
[1721034690928,2.68806,3348.2,3347.4,0.06383168]
[1721034691255,3.06662967,3348.5,3347.7,1.7]
[1721034691256,5.12603,3348.5,3347.7,1.7]
[1721034691455,1.03342881,3348.4,3347.7,1.7]
[1721034691635,3.72139018,3348.3,3347.8,0.06358659]
[1721034691832,2.68794,3348.3,3347.8,0.06358659]
[1721034692142,9.98523,3348.8,3348.1,1.7]
[1721034692341,2.68731,3349.1,3348.1,1.88232689]
[1721034692342,2.68742,3349.0,3348.1,1.88232689]
[1721034692538,2.68731,3349.1,3348.2,0.06336983]
[1721034692539,1.0332822,3348.9,3348.2,0.06336983]
[1721034692739,2.68731,3349.1,3348.1,1.94205467]
[1721034692966,1.03322568,3349.0,3348.3,0.0632902]
[1721034693164,5.37466,3349.1,3348.3,0.0632902]
[1721034693165,2.68731,3349.1,3348.5,1.7]
[1721034693389,7.2977,3349.7,3348.6,0.23569789]
[1721034693600,2.68646,3350.2,3349.2,1.7]
[1721034693748,3.71953873,3350.1,3349.7,1.7]
[1721034693948,1.03299873,3350.0,3349.7,1.7]
[1721034694149,2.68633,3350.3,3349.7,1.7]
[1721034694348,4.21489717,3350.2,3349.8,0.06244677]
[1721034694585,4.21489717,3350.2,3349.7,1.7]
[1721034694586,3.181993,3350.2,3349.7,1.7]
[1721034695089,0.495593,3350.2,3349.8,0.06244677]
[1721034695491,0.495593,3350.2,3349.7,1.7]
[1721034695786,0.495593,3350.2,3349.8,0.06240085]
[1721034696097,0.495593,3350.2,3349.7,1.7]
[1721034696383,2.68626,3350.4,3349.8,0.06240085]
[1721034696696,2.68626,3350.4,3349.7,1.7]
[1721034696899,2.68633,3350.3,3349.7,1.7]
[1721034697049,2.68633,3350.3,3349.8,0.06240085]
[1721034697250,0.268633,3350.2,3349.3,1.7]
[1721034697451,2.68662,3350.0,3349.3,1.7]
[1721034697655,2.68653,3350.1,3349.3,1.7]
[1721034698058,2.68657,3350.0,3349.4,0.06261458]
[1721034698485,2.68664,3349.9,3349.2,1.7]
[1721034698668,2.68664,3349.9,3349.5,0.06256114]
[1721034698869,0.268664,3349.8,3349.1,1.7]
[1721034699091,2.68683,3349.7,3349.6,0.06250771]
[1721034699306,0.268664,3349.8,3349.5,1.7]
[1721034700055,2.955394,3349.8,3349.6,0.06249782]
[1721034700256,2.68649,3350.1,3349.6,0.06249782]
[1721034700556,6.38012,3350.6,3349.5,1.7]
[1721034700557,2.68657,3350.0,3349.5,1.7]
[1721034701150,2.68626,3350.4,3349.5,1.7]
[1721034701355,2.68626,3350.4,3349.1,2.7469755]
[1721034701356,2.6861,3350.6,3349.9,1.7]
[1721034701570,0.26861,3350.5,3349.9,1.7]
[1721034701756,0.26861,3350.5,3350.0,0.06228412]
[1721034702255,0.26861,3350.5,3349.9,1.7]
[1721034702450,2.68646,3350.2,3349.5,1.7]
[1721034702691,2.68625,3350.4,3349.5,1.7]
[1721034702692,2.68649,3350.1,3349.5,1.7]
[1721034702992,2.68657,3350.0,3349.6,0.06249782]
[1721034703292,3.223764,3350.1,3349.6,0.06249782]
[1721034703801,2.68635,3350.3,3349.6,0.06249782]
[1721034704095,2.9548,3350.5,3349.6,0.06249782]
[1721034704592,2.6864,3350.3,3349.6,0.06249782]
[1721034704756,2.68585,3350.9,3349.6,0.06249782]
[1721034704757,2.68608,3350.6,3349.9,1.7]
[1721034704961,2.68616,3350.5,3349.9,1.7]
[1721034705174,2.68624,3350.4,3350.0,0.06005096]
[1721034705691,2.68613,3350.6,3350.0,0.06005096]
[1721034706001,2.68617,3350.5,3350.0,0.06005096]
[1721034706558,2.68628,3350.4,3350.0,0.06005096]
[1721034706766,2.6864,3350.2,3350.0,0.06005096]
[1721034707179,0.55,3350.3,3350.0,0.06005096]
[1721034707560,3.23638,3350.3,3350.0,0.06005096]
[1721034707756,2.68592,3350.8,3350.0,0.06005096]
[1721034707985,3.75223197,3350.8,3350.0,0.06005096]
[1721034708310,2.68616,3350.5,3350.0,0.06005096]
[1721034712305,2.68625,3350.4,3350.0,0.06005096]
[1721034712783,2.68645,3350.2,3350.0,0.06005096]
[1721034713102,2.68648,3350.1,3350.0,0.06005096]
[1721034715512,6.460241,3350.1,3350.0,0.06005096]
[1721034715817,6.460241,3350.1,3349.5,1.7]
[1721034715818,2.6867,3349.9,3349.5,1.7]
[1721034716219,2.68674,3349.8,3349.5,1.7]
[1721034717578,3.2365,3350.1,3349.5,1.7]
[1721034717827,2.68671,3349.9,3349.6,0.06023288]
[1721034718005,2.68674,3349.8,3349.6,0.06023288]
[1721034718178,2.6868,3349.7,3349.6,0.06023288]
[1721034718373,2.6868,3349.7,3349.2,1.7]
[1721034718374,3.2368,3349.7,3349.2,1.7]
[1721034718627,5.3736,3349.7,3349.6,0.06023288]
[1721034718816,2.68688,3349.6,3349.2,1.7]
[1721034719112,2.68675,3349.8,3349.6,0.06023288]
[1721034719288,2.6868,3349.7,3349.6,0.06023288]
[1721034719826,2.6868,3349.7,3348.9,3.0]
[1721034720115,2.6868,3349.7,3349.6,0.06023288]
[1721034720417,2.6868,3349.7,3349.2,1.7]
[1721034720418,2.68689,3349.6,3349.2,1.7]
[1721034720578,2.68711,3349.4,3349.2,1.7]
[1721034722481,2.68689,3349.6,3349.2,1.7]
[1721034722684,2.68705,3349.4,3349.2,1.7]
[1721034723625,2.6869,3349.6,3348.1,1.7]
[1721034723626,2.6877,3348.6,3348.1,1.7]
[1721034723944,2.68753,3348.8,3348.1,1.7]
[1721034724283,0.55,3348.7,3348.1,1.7]
[1721034724554,2.68769,3348.6,3348.1,1.7]
[1721034724921,0.55,3348.7,3348.1,1.7]
[1721034725098,3.23762,3348.7,3348.1,1.7]
[1721034725309,2.68769,3348.6,3348.1,1.7]
[1721034725499,2.68778,3348.5,3348.1,1.7]
[1721034725683,2.68802,3348.2,3348.0,3.0]
[1721034725885,2.68802,3348.2,3347.9,1.7]
[1721034725886,2.68778,3348.5,3347.9,1.7]
[1721034727201,2.68778,3348.5,3347.6,3.0]
[1721034727202,2.68793,3348.3,3348.0,1.7]
[1721034727690,2.68759,3348.8,3348.0,1.87]
[1721034728027,2.68759,3348.8,3348.4,1.7]
[1721034728628,2.68759,3348.8,3348.5,0.06088936]
[1721034728827,2.68759,3348.8,3348.4,1.7]
[1721034729192,3.23737,3349.0,3348.5,0.06088936]
[1721034729393,2.68745,3348.9,3348.5,0.06088936]
[1721034729638,2.68745,3348.9,3348.4,1.7]
[1721034729805,2.68745,3348.9,3348.6,0.06083589]
[1721034730007,2.68745,3348.9,3348.4,1.7]
[1721034730321,2.6873,3349.1,3348.7,0.06078243]
[1721034730725,2.6873,3349.1,3348.4,1.7]
[1721034730935,2.6873,3349.1,3348.8,0.06072897]
[1721034731237,2.6873,3349.1,3348.4,1.7]
[1721034731444,2.6873,3349.1,3348.9,0.06067552]
[1721034731649,2.6873,3349.1,3348.4,1.7]
[1721034731650,2.68736,3349.0,3348.4,1.7]
[1721034732610,2.68715,3349.3,3348.8,1.7]
[1721034733215,7.2977,3349.6,3348.8,1.7]
[1721034733543,9.9846,3349.6,3348.9,0.0597129]
[1721034733753,2.68699,3349.5,3348.9,0.0597129]
[1721034733949,2.68699,3349.5,3349.0,0.06062206]
[1721034734310,2.68699,3349.5,3348.9,0.0597129]
[1721034734513,2.68699,3349.5,3349.2,1.7]
[1721034734732,9.98459,3349.6,3349.2,1.7]
[1721034734919,0.55,3349.5,3349.3,0.06046172]
[1721034735231,0.55,3349.5,3349.2,1.7]
[1721034735521,3.23696,3349.5,3349.4,0.06040828]
[1721034735745,3.23696,3349.5,3349.3,0.06046172]
[1721034735927,3.23696,3349.5,3349.2,1.7]
[1721034736440,0.55,3349.5,3349.3,0.06046172]
[1721034736745,3.23697,3349.5,3349.2,1.7]
[1721034738926,0.55,3349.5,3349.2,1.7]
[1721034739249,2.68658,3350.0,3349.6,1.7]
[1721034739456,0.61330302,3350.1,3349.6,1.7]
[1721034739654,2.68643,3350.2,3349.6,1.7]
[1721034739810,0.69114434,3350.1,3349.6,1.7]
[1721034740012,0.07784132,3350.1,3349.6,1.7]
[1721034740324,3.29973302,3350.2,3349.7,0.06024798]
[1721034740546,0.07784241,3350.1,3349.7,0.06024798]
[1721034740719,3.37762703,3350.1,3349.6,1.7]
[1721034740920,3.29978302,3350.1,3349.6,1.7]
[1721034741123,0.69114708,3350.0,3349.7,0.06024798]
[1721034741545,2.68656,3350.0,3349.6,1.7]
[1721034741856,2.68672,3349.9,3349.6,1.7]
[1721034742154,2.68673,3349.8,3349.6,1.7]
[1721034742523,3.30267106,3350.1,3349.6,1.7]
[1721034742720,2.68665,3349.9,3349.6,1.7]
[1721034743032,0.65393211,3349.9,3349.1,1.7]
[1721034743339,2.6871,3349.4,3348.8,4.7]
[1721034743541,2.68714,3349.3,3348.8,1.7]
[1721034744158,0.61617106,3349.5,3348.4,1.7]
[1721034744359,2.68742,3349.0,3348.4,1.7]
[1721034744557,2.68751,3348.9,3348.4,1.7]
[1721034744721,2.68751,3348.9,3348.3,2.3455]
[1721034744920,2.68751,3348.9,3348.4,1.7]
[1721034745257,2.68751,3348.9,3348.0,0.17]
[1721034745258,2.68769,3348.6,3348.0,0.17]
[1721034745461,2.68769,3348.6,3348.1,1.7]
[1721034746200,2.6878,3348.5,3348.1,1.7]
[1721034746359,2.68794,3348.3,3347.4,2.405]
[1721034746558,2.68794,3348.3,3347.4,2.6455]
[1721034746559,2.68814,3348.1,3347.4,2.6455]
[1721034746766,2.68802,3348.2,3347.7,1.7]
[1721034747160,2.68779,3348.5,3348.1,1.7]
[1721034747376,2.68786,3348.4,3348.1,1.7]
[1721034747578,2.68779,3348.5,3348.1,1.7]
[1721034747962,5.93397659,3349.1,3348.1,1.87]
[1721034747963,2.93857106,3349.1,3348.1,1.87]
[1721034748168,3.23739,3349.0,3348.2,0.05972906]
[1721034748364,2.68761,3348.7,3348.1,1.87]
[1721034748767,2.68769,3348.6,3348.2,0.06109496]
[1721034749397,2.68792,3348.4,3348.2,0.06109496]
[1721034749565,2.68792,3348.4,3348.1,1.7]
[1721034749771,2.68792,3348.4,3348.3,0.06104148]
[1721034750000,2.68792,3348.4,3348.1,1.7]
[1721034750174,2.68769,3348.6,3348.1,1.7]
[1721034750376,2.68769,3348.6,3348.2,0.06109496]
[1721034750760,2.68792,3348.4,3348.2,0.06109496]
[1721034751074,2.68782,3348.5,3348.2,0.06109496]
[1721034751272,2.68782,3348.5,3348.1,1.7]
[1721034751481,2.68787,3348.4,3348.3,0.06104148]
[1721034751654,2.68787,3348.4,3348.1,1.7]
[1721034751854,2.68787,3348.4,3348.3,0.06104148]
[1721034752114,2.68787,3348.4,3348.1,1.7]
[1721034752300,2.68801,3348.2,3348.1,1.7]
[1721034752669,2.68801,3348.2,3348.1,1.7612325]
[1721034757784,2.68787,3348.4,3348.1,1.7612325]
[1721034757990,2.6877,3348.6,3348.1,1.93735575]
[1721034759423,2.68753,3348.8,3348.1,0.0612325]
[1721034759424,2.68801,3348.2,3348.1,0.0612325]
[1721034759923,2.68801,3348.2,3348.1,0.06122473]
[1721034760427,2.68801,3348.2,3347.7,1.7]
[1721034760634,2.68801,3348.2,3348.1,0.06122473]
[1721034760806,2.68801,3348.2,3347.7,1.7]
[1721034761019,2.68801,3348.2,3348.1,0.06122473]
[1721034761214,2.68801,3348.2,3347.7,1.7]
[1721034761414,2.68801,3348.2,3348.1,0.06122473]
[1721034761622,2.68801,3348.2,3347.7,1.7]
[1721034761817,2.68801,3348.2,3348.1,0.06122473]
[1721034762019,2.68785,3348.4,3347.7,1.7]
[1721034762330,2.68777,3348.5,3348.1,1.7]
[1721034762735,2.68785,3348.4,3348.2,0.06117125]
[1721034763338,3.23761,3348.7,3348.2,0.06117125]
[1721034763542,2.68775,3348.6,3348.2,0.06117125]
[1721034763749,3.23761,3348.7,3348.2,0.06117125]
[1721034764040,2.68761,3348.7,3348.5,1.7]
[1721034764247,2.68769,3348.6,3348.5,1.7]
[1721034765141,2.68757,3348.8,3348.5,1.7]
[1721034765350,2.68761,3348.7,3348.5,1.7]
[1721034765915,2.68769,3348.6,3348.5,1.7]
[1721034766449,2.68777,3348.5,3348.1,1.7]
[1721034768148,2.68769,3348.6,3348.1,1.7]
[1721034768474,2.68769,3348.6,3348.2,0.17]
[1721034768639,2.68769,3348.6,3348.1,1.7]
[1721034769151,2.68777,3348.5,3348.1,1.7]
[1721034771664,2.68785,3348.4,3348.1,1.7]
[1721034772463,2.68793,3348.3,3348.1,1.7]
[1721034772664,2.68793,3348.3,3347.8,0.47]
[1721034772665,2.68793,3348.3,3347.8,1.7]
[1721034772977,2.68809,3348.1,3347.8,1.7]
[1721034773176,2.68793,3348.3,3347.8,1.7]
[1721034773469,2.68795,3348.3,3347.8,2.17]
[1721034773654,2.68806,3348.2,3347.8,1.7]
[1721034774955,2.68793,3348.3,3347.8,1.7]
[1721034776078,2.68802,3348.2,3347.8,1.7]
[1721034776381,2.68809,3348.1,3347.8,1.7]
[1721034777573,2.68788,3348.4,3347.8,1.7]
[1721034777874,2.68788,3348.4,3347.9,0.06134796]
[1721034779574,2.68798,3348.3,3347.9,0.06134796]
[1721034780474,2.68788,3348.4,3347.9,0.06134796]
[1721034780662,2.68794,3348.3,3347.9,0.23748276]
[1721034780977,2.68783,3348.5,3348.2,1.7]
[1721034781469,2.68785,3348.4,3348.2,1.7]
[1721034782264,2.68785,3348.4,3348.3,0.06113404]
[1721034782573,2.68785,3348.4,3348.2,1.7]
[1721034782875,2.68785,3348.4,3348.3,0.06113404]
[1721034783073,3.72120692,3348.4,3348.2,1.7]
[1721034783273,2.68785,3348.4,3348.3,0.06113404]
[1721034783478,2.68785,3348.4,3348.2,1.7]
[1721034783682,2.68785,3348.4,3348.3,0.06113404]
[1721034783858,2.68785,3348.4,3348.2,1.7]
[1721034784182,2.68785,3348.4,3348.3,0.06113404]
[1721034784599,2.68793,3348.3,3348.2,1.7]
[1721034785082,7.00848919,3348.3,3348.2,0.0611861]
[1721034785296,2.68825,3347.9,3347.8,1.7]
[1721034788494,0.61788525,3348.2,3347.8,1.7]
[1721034788652,0.07788455,3348.1,3347.9,0.05973317]
[1721034788856,0.61788525,3348.6,3348.2,1.7]
[1721034789277,0.07786908,3348.5,3348.0,1.87597332]
[1721034789448,0.69575433,3348.4,3348.0,1.7]
[1721034789650,0.07786908,3348.3,3348.0,1.7]
[1721034789893,2.76596017,3348.2,3348.0,1.7]
[1721034790105,2.68808,3348.2,3348.0,1.7]
[1721034790690,3.30596525,3348.2,3348.0,1.7]
[1721034790850,2.68808,3348.2,3348.0,1.7]
[1721034791054,3.30596525,3348.2,3348.0,1.7]
[1721034791257,3.38385833,3348.1,3348.0,1.7]
[1721034791495,2.76597308,3348.1,3348.0,1.7]
[1721034791972,2.7659767,3348.1,3348.0,1.7]
[1721034792195,2.68826,3347.9,3347.6,1.7]
[1721034792774,2.68826,3347.9,3347.7,0.06145777]
[1721034793056,2.68826,3347.9,3347.6,1.7]
[1721034793252,2.68826,3347.9,3347.8,0.06140427]
[1721034793481,3.38493183,3347.9,3347.6,1.7]
[1721034793651,3.38493183,3347.9,3347.8,0.06140427]
[1721034793652,3.30704484,3347.9,3347.8,0.06140427]
[1721034793858,2.68833,3347.8,3347.6,1.7]
[1721034795710,0.07789329,3347.7,3347.6,1.7]
[1721034795862,3.30703484,3347.9,3347.6,1.7]
[1721034796258,0.07789049,3347.8,3347.6,1.7]
[1721034796577,3.30703484,3347.9,3347.6,1.7]
[1721034796578,2.68841,3347.7,3347.6,1.7]
[1721034798494,2.68865,3347.4,3347.2,1.7]
[1721034798698,2.68873,3347.3,3347.2,1.7]
[1721034798918,2.68881,3347.2,3346.9,1.7]
[1721034799125,2.68894,3347.1,3346.7,1.7]
[1721034799263,2.68894,3347.1,3346.7,2.33131223]
[1721034799463,2.68881,3347.2,3346.7,2.33131223]
[1721034799464,2.68897,3347.0,3346.7,2.33131223]
[1721034799660,2.68881,3347.2,3346.7,2.33131223]
[1721034799888,2.68891,3347.1,3346.7,2.33131223]
[1721034800913,2.68881,3347.2,3346.7,2.33131223]
[1721034801217,2.68881,3347.2,3346.8,0.4840265]
[1721034801717,3.30648504,3347.6,3347.1,1.7]
[1721034801866,2.68866,3347.4,3347.1,1.7]
[1721034802666,0.61798504,3347.7,3347.5,1.7]
[1721034802871,2.68819,3348.0,3347.5,1.7]
[1721034803080,2.68826,3347.9,3347.6,0.05966445]
[1721034803285,2.68819,3348.0,3347.6,0.05966445]
[1721034803500,2.68826,3347.9,3347.6,0.05966445]
[1721034803911,2.68826,3347.9,3347.5,1.7]
[1721034804070,2.68826,3347.9,3347.7,0.05961096]
[1721034804276,2.68826,3347.9,3347.5,1.7]
[1721034804476,2.68826,3347.9,3347.8,0.05955747]
[1721034804672,2.68826,3347.9,3347.5,2.1153]
[1721034804868,2.68826,3347.9,3347.8,0.05955747]
[1721034805183,2.68826,3347.9,3347.5,1.7]
[1721034805184,2.68834,3347.8,3347.5,1.7]
[1721034805379,2.68849,3347.7,3347.5,1.7]
[1721034805584,2.68849,3347.7,3347.6,0.05966445]
[1721034805973,2.68854,3347.6,3347.3,1.7]
[1721034806385,2.68854,3347.6,3347.4,0.05977145]
[1721034807072,0.61798504,3348.0,3347.4,0.05977145]
[1721034807073,5.37714,3347.5,3347.4,0.05977145]
[1721034807575,2.68865,3347.4,3347.3,1.7]
[1721034810019,2.68881,3347.2,3347.0,1.7]
[1721034810177,2.68889,3347.1,3347.0,1.7]
[1721034812497,6.02000756,3347.6,3346.6,1.7]
[1721034812498,0.61798504,3347.4,3346.6,1.7]
[1721034812707,2.68919,3346.8,3346.6,1.7]
[1721034813779,2.689,3347.0,3346.6,1.7]
[1721034814421,2.68907,3346.9,3346.6,1.7]
[1721034815497,2.689,3347.0,3346.6,1.7]
[1721034815822,2.689,3347.0,3346.6,2.8972]
[1721034816425,2.68896,3347.1,3347.0,1.7]
[1721034818004,2.68874,3347.3,3347.0,1.7]
[1721034818005,2.68878,3347.3,3347.0,1.7]
[1721034819050,2.68866,3347.4,3347.0,1.7]
[1721034819258,2.68866,3347.4,3347.0,1.87]
[1721034820505,3.30534067,3347.8,3347.0,1.87]
[1721034820739,2.68834,3347.8,3347.0,1.92974396]
[1721034821450,2.68834,3347.8,3347.0,1.87]
[1721034821451,3.30534067,3347.8,3347.0,1.87]
[1721034821612,2.68834,3347.8,3347.0,1.92974398]
[1721034821943,2.68834,3347.8,3347.1,0.32827389]
[1721034822245,2.68834,3347.8,3347.5,1.7]
[1721034823548,5.99341067,3348.0,3347.5,1.7]
[1721034823758,2.68826,3347.9,3347.5,1.7]
[1721034824109,0.61700067,3348.0,3347.6,0.05969201]
[1721034824438,2.68825,3347.9,3347.6,0.05969201]
[1721034824607,2.68815,3348.1,3347.6,0.05969201]
[1721034824823,3.3053593,3348.2,3348.1,1.7]
[1721034825171,3.3051893,3348.4,3348.1,1.7]
[1721034825319,3.38315376,3348.3,3348.1,1.7]
[1721034825519,0.07788446,3348.2,3348.1,1.7]
[1721034825763,3.3052693,3348.3,3348.1,1.7]
[1721034825949,2.68801,3348.2,3348.1,1.7]
[1721034826153,3.38322783,3348.2,3348.1,1.7]
[1721034826348,3.78201,3348.2,3348.1,1.7]
[1721034827124,4.47722564,3348.2,3347.7,1.7]
[1721034827328,1.094,3347.9,3347.7,1.7]
[1721034828139,1.094,3347.9,3347.2,3.0]
[1721034828434,1.094,3347.9,3347.7,1.7]
[1721034829848,3.78231,3347.9,3347.2,3.0]
[1721034830051,1.094,3347.4,3347.2,1.7]
[1721034831177,1.094,3347.6,3347.2,1.7]
[1721034832250,2.68842,3347.7,3347.2,1.7]
[1721034832454,2.68842,3347.7,3346.8,3.0]
[1721034832455,2.68858,3347.5,3347.3,1.7]
[1721034833188,3.23865,3347.4,3347.3,1.7]
[1721034834183,2.68857,3347.5,3347.3,1.7]
[1721034835282,0.61769432,3347.6,3347.3,1.7]
[1721034835441,0.69559764,3347.5,3347.3,1.7]
[1721034835642,3.30618432,3347.6,3347.3,1.7]
[1721034835839,0.07790265,3347.5,3347.3,1.7]
[1721034836043,0.61769432,3347.6,3347.3,1.7]
[1721034836256,0.6955949,3347.6,3347.3,1.7]
[1721034837053,0.61769432,3347.7,3347.3,1.7]
[1721034837449,3.30597432,3347.9,3347.3,2.10622]
[1721034837650,2.68828,3347.9,3347.4,0.05972622]
[1721034837889,0.61769432,3348.0,3347.7,1.7]